[Event "Live Chess"]
[Site "Chess.com"]
[Date "2021.02.28"]
[Round "?"]
[White "Kerray, Bill"]
[Black "Macleod, Alisdair"]
[Result "0-1"]
[ECO "D10"]
[WhiteElo "1052"]
[BlackElo "1762"]
[PlyCount "46"]
[EventDate "2021.??.??"]
[TimeControl "1500+10"]

{[%evp 0,26,29,33,21,6,26,4,9,12,14,4,29,33,47,-27,-27,-14,48,-16,-1,-6,4,-53,
-53,-125,-47,-297,-308]} 1. d4 d5 2. c4 c6 3. Bf4 Nf6 4. e3 Qb6 5. b3 Bf5 6.
Nf3 Nh5 7. Nc3 Nxf4 8. exf4 h6 9. Be2 e6 10. O-O Nd7 11. Re1 Bb4 12. Qc1 O-O
13. Nh4 Qxd4 14. Nxf5 exf5 15. Rd1 Qxc3 16. h3 Qxc1 17. Raxc1 Nf6 18. cxd5 Nxd5
19. g3 Nc3 20. Rd2 Rad8 21. Rdc2 Nxe2+ 22. Rxe2 Rd2 23. Re7 Bxe7 {
Arcticon_Tiger won by resignation} 0-1

[Event "Live Chess"]
[Site "Chess.com"]
[Date "2021.02.28"]
[Round "?"]
[White "Heatlie, Douglas S"]
[Black "Macleod, Alisdair"]
[Result "0-1"]
[ECO "A46"]
[WhiteElo "1612"]
[BlackElo "1775"]
[PlyCount "70"]
[EventDate "2021.??.??"]
[TimeControl "1500+10"]

{[%evp 0,40,39,36,29,20,52,57,57,29,38,32,32,28,29,18,34,-6,9,-6,35,24,37,40,
31,31,31,48,149,152,147,155,164,132,136,115,140,99,96,114,94,103,162]} 1. d4
Nf6 2. Nf3 c6 3. Bf4 d5 4. h3 h6 5. Nbd2 Bf5 6. e3 e6 7. Be2 Qb6 8. b3 Nbd7 9.
O-O Rc8 10. c4 Be7 11. c5 Qd8 12. b4 O-O 13. a4 b6 14. Ba6 Rb8 15. Bxb8 Qxb8
16. Be2 bxc5 17. bxc5 e5 18. Qb3 Qc7 19. Rfc1 Rb8 20. Qc3 e4 21. Ne1 Kh8 22.
Rab1 Rg8 23. Ba6 g5 24. Rb7 Qd8 25. Rcb1 g4 26. hxg4 Nxg4 27. Rxa7 Bh4 28. f4
Bf2+ 29. Kf1 Qh4 30. Nef3 exf3 31. Nxf3 Qh1+ 32. Ke2 Qxg2 33. Ne1 Bxe1+ 34.
Kxe1 Qf2+ 35. Kd1 Nxe3+ {Arcticon_Tiger won by resignation} 0-1

[Event "Live Chess"]
[Site "Chess.com"]
[Date "2021.02.28"]
[Round "-"]
[White "Vijayakumar, Rishi"]
[Black "Bate, Simon"]
[Result "1-0"]
[BlackElo "1374"]
[CurrentPosition "2r2rk1/2q1Np2/p3pQ1p/1pp5/3PBb2/8/PP3PP1/R3R2K b - -"]
[ECO "E14"]
[ECOUrl "https://www.chess.com/openings/Queens-Indian-Defense-Spassky-System-4...Bb7-5.Nc3"]
[EndDate "2021.02.28"]
[EndTime "11:23:06"]
[Link "https://www.chess.com/live/game/8249652117"]
[StartTime "11:11:54"]
[Termination "scientificmouse won by resignation"]
[TimeControl "1500+10"]
[Timezone "UTC"]
[UTCDate "2021.02.28"]
[UTCTime "11:11:54"]
[WhiteElo "1637"]

1. d4 Nf6 2. c4 e6 3. Nf3 b6 4. Nc3 Bb7 5. e3 d5 6. Be2 dxc4 7. Bxc4 Nbd7 8. O-O Bd6 9. Re1 Bf8 10. e4 Bd6 11. e5 O-O 12. exf6 Nxf6 13. Bg5 h6 14. Bh4 a6 15. Ne5 b5 16. Bd3 c5 17. Ne4 Bxe4 18. Bxe4 Rc8 19. Nc6 Qc7 20. Bxf6 Bxh2+ 21. Kh1 gxf6 22. Qg4+ Kh8 23. Qh4 Bf4 24. Qxf6+ Kg8 25. Ne7+ 1-0

[Event "Live Chess"]
[Site "Chess.com"]
[Date "2021.02.28"]
[Round "-"]
[White "Doris, Peter J"]
[Black "Bushnaq, Ahmad"]
[Result "1-0"]
[BlackElo "1392"]
[CurrentPosition "8/8/5PK1/8/5P2/3k4/8/8 b - -"]
[ECO "A24"]
[ECOUrl "https://www.chess.com/openings/English-Opening-Carls-Bremen-Fianchetto-Line-4.Bg2"]
[EndDate "2021.02.28"]
[EndTime "14:55:11"]
[Link "https://www.chess.com/live/game/8261027081"]
[StartTime "14:19:18"]
[Termination "Stoic1 won by resignation"]
[TimeControl "1800"]
[Timezone "UTC"]
[UTCDate "2021.02.28"]
[UTCTime "14:19:18"]
[WhiteElo "1514"]

1. c4 e5 2. Nc3 Nf6 3. g3 g6 4. Bg2 d6 5. e4 b6 6. d3 Nc6 7. Nge2 Bb7 8. O-O Bg7 9. h3 Ne7 10. Be3 c5 11. Qd2 Qd7 12. Kh2 h5 13. Nd5 Nexd5 14. cxd5 O-O-O 15. Rfc1 Ne8 16. b4 Nc7 17. bxc5 dxc5 18. a4 Rdf8 19. Nc3 Ba6 20. Rcb1 Qd6 21. Nb5 Bxb5 22. axb5 Kb7 23. Qa2 Ra8 24. Qc4 Rhf8 25. Ra2 f5 26. Bg5 Bf6 27. Qc1 f4 28. Bxf6 Rxf6 29. Rba1 g5 30. Qc2 a6 31. bxa6+ Rxa6 32. Rxa6 Nxa6 33. Qa4 Nc7 34. Qa7+ Kc8 35. Qa2 g4 36. hxg4 hxg4 37. Rh1 f3 38. Bf1 Rh6+ 39. Kg1 Rxh1+ 40. Kxh1 b5 41. Qd2 b4 42. Qg5 Qd7 43. Qxe5 b3 44. d6 Ne6 45. Qb2 Qxd6 46. Qxb3 Nd4 47. Qg8+ Kc7 48. Qxg4 Qh6+ 49. Qh4 Qc1 50. Qf4+ Qxf4 51. gxf4 Ne6 52. f5 Nf4 53. Kh2 Kd6 54. Kg3 Ke5 55. Kxf3 Nh5 56. Kg4 Nf6+ 57. Kg5 Nd7 58. Be2 Nf6 59. f4+ Kd4 60. Kxf6 Ke3 61. d4 cxd4 62. Ba6 Kxe4 63. Kg6 d3 64. Bxd3+ Kxd3 65. f6 1-0

[Event "Live Chess"]
[Site "Chess.com"]
[Date "2021.02.28"]
[Round "?"]
[White "Bate, Simon"]
[Black "Vasiliadis, Theodoros"]
[Result "0-1"]
[BlackElo "1726"]
[ECO "E73"]
[EndTime "6:11:44 PST"]
[Termination "crywolf63 won by resignation"]
[TimeControl "1500+10"]
[WhiteElo "1345"]

1. d4 { [%timestamp 1] } 1... Nf6 { [%timestamp 1] } 2. c4 { [%timestamp 25] } 2... g6 { [%timestamp 27] } 3. Nc3 { [%timestamp 33] } 3... Bg7 { [%timestamp 22] } 4. e4 { [%timestamp 105] } 4... d6 { [%timestamp 13] } 5. Be2 { [%timestamp 30] } 5... O-O { [%timestamp 20] } 6. Bg5 { [%timestamp 34] } 6... h6 { [%timestamp 15] } 7. Bh4 { [%timestamp 28] } 7... c5 { [%timestamp 75] } 8. Nf3 { [%timestamp 320] } 8... cxd4 { [%timestamp 175] } 9. Nxd4 { [%timestamp 34] } 9... Nc6 { [%timestamp 11] } 10. Nb3 { [%timestamp 199] } 10... Be6 { [%timestamp 437] } 11. O-O { [%timestamp 215] } 11... Rc8 { [%timestamp 108] } 12. f4 { [%timestamp 217] } 12... Na5 { [%timestamp 527] } 13. Nd5 { [%timestamp 93] } 13... Bxd5 { [%timestamp 168] } 14. cxd5 { [%timestamp
55] } 14... Nxe4 { [%timestamp 129] } 15. Nxa5 { [%timestamp 29] } 15... Qxa5 { [%timestamp 16] } 16. Bxe7 { [%timestamp 43] } 16... Rfe8 { [%timestamp 33] } 17. Bh4 { [%timestamp 575] } 17... Qb6+ { [%timestamp 58] } 18. Kh1 { [%timestamp 212] } 18... Bxb2 { [%timestamp 29] } 19. Rb1 { [%timestamp 57] } 19... Nc3 { [%timestamp
39] } 20. Qd2 { [%timestamp 180] } 20... Rxe2 { [%timestamp 269] } 21. Rxb2 { [%timestamp 315] } 21... Rxd2 { [%timestamp 72] } 22. Rxb6 { [%timestamp 36] } 22... axb6 { [%timestamp 1] } 23. Be1 { [%timestamp 102] } 23... Rd1 { [%timestamp 267] } 0-1

[Event "Live Chess"]
[Site "Chess.com"]
[Date "2021.02.28"]
[Round "-"]
[White "Bennett, William"]
[Black "Grove, Michael"]
[Result "1-0"]
[BlackElo "1828"]
[CurrentPosition "7k/8/5N1P/p4PN1/8/1K6/8/8 b - -"]
[ECO "C25"]
[ECOUrl "https://www.chess.com/openings/Vienna-Game-2...d6"]
[EndDate "2021.02.28"]
[EndTime "12:02:37"]
[Link "https://www.chess.com/live/game/8248494745"]
[StartTime "10:55:33"]
[Termination "kajeongyong won by resignation"]
[TimeControl "1500+10"]
[Timezone "UTC"]
[UTCDate "2021.02.28"]
[UTCTime "10:55:33"]
[WhiteElo "2056"]

1. e4 { [%clk 0:25:10] } 1... d6 { [%clk 0:25:10] } 2. Nc3 { [%clk 0:25:17.7] } 2... e5 { [%clk 0:25:16.7] } 3. Bc4 { [%clk 0:25:14.3] } 3... Be7 { [%clk 0:25:18.7] } 4. f4 { [%clk 0:25:06] } 4... Nf6 { [%clk 0:25:21.4] } 5. d3 { [%clk 0:25:12.4] } 5... c6 { [%clk 0:24:37.4] } 6. Bb3 { [%clk 0:24:42.5] } 6... Na6 { [%clk 0:23:39.1] } 7. Nf3 { [%clk 0:24:07.7] } 7... Qc7 { [%clk 0:23:40.9] } 8. O-O { [%clk 0:24:15.2] } 8... Nc5 { [%clk 0:23:47.2] } 9. Be3 { [%clk 0:23:42.6] } 9... Nxb3 { [%clk 0:23:51.1] } 10. axb3 { [%clk 0:23:52.5] } 10... Ng4 { [%clk 0:23:28.3] } 11. Qe2 { [%clk 0:23:29.2] } 11... Bd7 { [%clk 0:18:36.9] } 12. f5 { [%clk 0:22:12.2] } 12... Bf6 { [%clk 0:15:40.2] } 13. Bd2 { [%clk 0:21:36.2] } 13... h5 { [%clk 0:14:11.2] } 14. h3 { [%clk 0:20:18.8] } 14... Nh6 { [%clk 0:14:16.4] } 15. Be3 { [%clk 0:19:57.5] } 15... b6 { [%clk 0:14:02.8] } 16. Nd2 { [%clk 0:19:15.6] } 16... Ng8 { [%clk 0:13:58.1] } 17. Nc4 { [%clk 0:19:07.5] } 17... Rb8 { [%clk 0:13:28.6] } 18. Ra6 { [%clk 0:18:30.9] } 18... Bc8 { [%clk 0:12:27.7] } 19. Ra2 { [%clk 0:18:38.5] } 19... Ne7 { [%clk 0:12:36.1] } 20. Rfa1 { [%clk 0:18:36.3] } 20... a6 { [%clk 0:12:34.3] } 21. Qf2 { [%clk 0:18:12.1] } 21... d5 { [%clk 0:10:52.2] } 22. Bxb6 { [%clk 0:17:03.8] } 22... Qd7 { [%clk 0:09:19.1] } 23. Nd2 { [%clk 0:14:41] } 23... d4 { [%clk 0:04:12.3] } 24. Na4 { [%clk 0:14:47.6] } 24... Bg5 { [%clk 0:04:20.7] } 25. Nf1 { [%clk 0:13:05.3] } 25... g6 { [%clk 0:03:34] } 26. h4 { [%clk 0:12:45] } 26... Bf4 { [%clk 0:03:36.1] } 27. g3 { [%clk 0:12:41.3] } 27... gxf5 { [%clk 0:03:23.2] } 28. gxf4 { [%clk 0:12:21.7] } 28... fxe4 { [%clk 0:03:27.3] } 29. dxe4 { [%clk 0:12:10.9] } 29... Qh3 { [%clk 0:03:31.3] } 30. Nh2 { [%clk 0:11:48.9] } 30... Ng6 { [%clk 0:03:25.4] } 31. f5 { [%clk 0:10:50.9] } 31... Nf4 { [%clk 0:01:53] } 32. Kh1 { [%clk 0:10:26.2] } 32... Rg8 { [%clk 0:01:43] } 33. Rg1 { [%clk 0:10:28.7] } 33... Rg4 { [%clk 0:01:47.8] } 34. Raa1 { [%clk 0:09:42.9] } 34... c5 { [%clk 0:01:16.2] } 35. Rxg4 { [%clk 0:08:53.9] } 35... hxg4 { [%clk 0:01:19] } 36. Rg1 { [%clk 0:09:03.2] } 36... Bb7 { [%clk 0:01:27.7] } 37. Rxg4 { [%clk 0:07:22.5] } 37... Bxe4+ { [%clk 0:01:28] } 38. Kg1 { [%clk 0:07:28.2] } 38... Qxg4+ { [%clk 0:00:39.3] } 39. Nxg4 { [%clk 0:07:34.4] } 39... Nh3+ { [%clk 0:00:48.2] } 40. Kf1 { [%clk 0:07:38.4] } 40... Nxf2 { [%clk 0:00:55.9] } 41. Kxf2 { [%clk 0:07:40.8] } 41... Bxc2 { [%clk 0:00:55.7] } 42. Nxe5 { [%clk 0:07:45.6] } 42... Bxb3 { [%clk 0:01:02.2] } 43. Ba7 { [%clk 0:07:33.5] } 43... Rb7 { [%clk 0:00:41.5] } 44. Nxc5 { [%clk 0:07:37.2] } 44... Rxa7 { [%clk 0:00:50.7] } 45. Nxb3 { [%clk 0:07:45.7] } 45... Rb7 { [%clk 0:00:59.9] } 46. Nxd4 { [%clk 0:07:47.2] } 46... Rxb2+ { [%clk 0:01:08.5] } 47. Ke3 { [%clk 0:07:53.7] } 47... Rb1 { [%clk 0:01:07.1] } 48. Kd3 { [%clk 0:07:54.2] } 48... Ke7 { [%clk 0:01:06.2] } 49. Kc3 { [%clk 0:07:59.6] } 49... Kf6 { [%clk 0:01:06.8] } 50. Ng4+ { [%clk 0:07:42.4] } 50... Kg7 { [%clk 0:01:15] } 51. h5 { [%clk 0:07:20.1] } 51... Rh1 { [%clk 0:01:14.6] } 52. h6+ { [%clk 0:07:26.2] } 52... Kh7 { [%clk 0:01:23.3] } 53. Kc4 { [%clk 0:06:54.6] } 53... a5 { [%clk 0:01:19.7] } 54. Nf3 { [%clk 0:06:47.1] } 54... Rf1 { [%clk 0:01:17.1] } 55. Ng5+ { [%clk 0:06:52.7] } 55... Kh8 { [%clk 0:01:25.3] } 56. Nf6 { [%clk 0:05:15.8] } 56... Rc1+ { [%clk 0:01:30.8] } 57. Kb3 { [%clk 0:04:14.5] } 57... Rc7 { [%clk 0:01:40.7] } 58. Ka4 { [%clk 0:03:55.4] } 58... Rb7 { [%clk 0:01:45.5] } 59. Nd5 { [%clk 0:02:55] } 59... f6 { [%clk 0:01:03.4] } 60. Nxf6 { [%clk 0:02:58.1] } 60... Rb4+ { [%clk 0:01:06.4] } 61. Ka3 { [%clk 0:02:48.9] } 61... Rb3+ { [%clk 0:01:14.5] } 62. Kxb3 { [%clk 0:02:45.8] } 1-0

[Event "Live Chess"]
[Site "Chess.com"]
[Date "2021.02.28"]
[Round "-"]
[White "Gregory, Sam"]
[Black "Mollison, Jamie"]
[Result "1/2-1/2"]
[BlackElo "2000"]
[CurrentPosition "3q1rk1/3b1rpp/ppn1p3/3p2R1/N2P1n2/4Q1B1/PP3PPP/1BR3K1 w - -"]
[ECO "C05"]
[ECOUrl "https://www.chess.com/openings/French-Defense-Tarrasch-Closed-4.e5-Nfd7-5.Bd3-c5-6.c3"]
[EndDate "2021.02.28"]
[EndTime "12:03:27"]
[Link "https://www.chess.com/live/game/8250196511"]
[StartTime "11:17:54"]
[Termination "Game drawn by repetition"]
[TimeControl "1500+10"]
[Timezone "UTC"]
[UTCDate "2021.02.28"]
[UTCTime "11:17:54"]
[WhiteElo "1986"]

1. e4 { [%clk 0:25:10] } 1... e6 { [%clk 0:25:10] } 2. d4 { [%clk 0:25:17.2] } 2... d5 { [%clk 0:25:17.1] } 3. Nd2 { [%clk 0:25:25] } 3... Nf6 { [%clk 0:25:23.6] } 4. e5 { [%clk 0:25:24.2] } 4... Nfd7 { [%clk 0:25:31.4] } 5. Bd3 { [%clk 0:25:29.4] } 5... c5 { [%clk 0:25:38.4] } 6. c3 { [%clk 0:25:36.7] } 6... cxd4 { [%clk 0:25:44.8] } 7. cxd4 { [%clk 0:25:41.4] } 7... Nc6 { [%clk 0:25:53.3] } 8. Ne2 { [%clk 0:25:29.1] } 8... f6 { [%clk 0:25:56.1] } 9. exf6 { [%clk 0:25:33.3] } 9... Nxf6 { [%clk 0:26:04.5] } 10. O-O { [%clk 0:25:31] } 10... Bd6 { [%clk 0:26:07.8] } 11. Nf3 { [%clk 0:25:17.4] } 11... Qc7 { [%clk 0:26:06] } 12. Nc3 { [%clk 0:24:22.5] } 12... a6 { [%clk 0:25:49.5] } 13. Bg5 { [%clk 0:24:17.4] } 13... O-O { [%clk 0:25:47.5] } 14. Bh4 { [%clk 0:24:25.3] } 14... Nh5 { [%clk 0:21:08.4] } 15. Rc1 { [%clk 0:23:22.4] } 15... Nf4 { [%clk 0:19:41.9] } 16. Bb1 { [%clk 0:22:13.4] } 16... Bd7 { [%clk 0:18:21.6] } 17. Bg3 { [%clk 0:20:41.9] } 17... Rae8 { [%clk 0:16:57.6] } 18. Re1 { [%clk 0:20:10.8] } 18... Re7 { [%clk 0:15:40.6] } 19. Na4 { [%clk 0:17:33.9] } 19... b6 { [%clk 0:14:11.3] } 20. Qb3 { [%clk 0:16:46.9] } 20... Rb8 { [%clk 0:13:20.5] } 21. Ne5 { [%clk 0:13:59.4] } 21... Bxe5 { [%clk 0:10:26.5] } 22. Rxe5 { [%clk 0:14:04.7] } 22... Rf7 { [%clk 0:08:32.4] } 23. Qe3 { [%clk 0:11:38.1] } 23... Rbf8 { [%clk 0:07:54.8] } 24. Rg5 { [%clk 0:10:28.2] } 24... Qd8 { [%clk 0:06:39.5] } 25. Bh4 { [%clk 0:08:02.2] } 25... Qb8 { [%clk 0:06:11.3] } 26. Bg3 { [%clk 0:07:43.5] } 26... Qd8 { [%clk 0:06:14.3] } 27. Bh4 { [%clk 0:07:37] } 27... Qb8 { [%clk 0:06:17.2] } 28. Bg3 { [%clk 0:07:37.1] } 28... Qd8 { [%clk 0:06:23.9] } 1/2-1/2

[Event "Live Chess"]
[Site "Chess.com"]
[Date "2021.02.28"]
[Round "-"]
[White "Baumanis, Kristaps"]
[Black "Mooney, Graham"]
[Result "0-1"]
[BlackElo "1835"]
[CurrentPosition "8/1R2pk2/3p2p1/6Kp/p3PP2/6Pr/8/8 w - -"]
[ECO "B57"]
[ECOUrl "https://www.chess.com/openings/Sicilian-Defense-Open-Classical-Sozin-Attack-6...Bd7-7.O-O"]
[EndDate "2021.02.28"]
[EndTime "12:04:14"]
[Link "https://www.chess.com/live/game/8249593895"]
[StartTime "11:07:32"]
[Termination "Grouvilleknight won by resignation"]
[TimeControl "1500+10"]
[Timezone "UTC"]
[UTCDate "2021.02.28"]
[UTCTime "11:07:32"]
[WhiteElo "1321"]

1. e4 { [%clk 0:25:10] } 1... c5 { [%clk 0:25:10] } 2. Nf3 { [%clk 0:25:16.6] } 2... d6 { [%clk 0:25:12.2] } 3. d4 { [%clk 0:25:25.7] } 3... cxd4 { [%clk 0:25:18.4] } 4. Nxd4 { [%clk 0:25:34.4] } 4... Nf6 { [%clk 0:25:19] } 5. Nc3 { [%clk 0:25:42] } 5... Nc6 { [%clk 0:25:23.7] } 6. Bc4 { [%clk 0:24:15.5] } 6... Bd7 { [%clk 0:24:00.7] } 7. O-O { [%clk 0:22:18.7] } 7... g6 { [%clk 0:23:44.8] } 8. Be3 { [%clk 0:19:22.1] } 8... Bg7 { [%clk 0:23:24.9] } 9. Qd2 { [%clk 0:18:50.7] } 9... O-O { [%clk 0:22:59] } 10. f3 { [%clk 0:17:56.1] } 10... Rc8 { [%clk 0:21:52.6] } 11. Bb3 { [%clk 0:17:35.8] } 11... Qa5 { [%clk 0:16:20.2] } 12. Rad1 { [%clk 0:12:55.8] } 12... a6 { [%clk 0:12:41.1] } 13. Nxc6 { [%clk 0:11:24] } 13... Bxc6 { [%clk 0:12:32.8] } 14. Nd5 { [%clk 0:10:04.1] } 14... Qd8 { [%clk 0:12:36.8] } 15. Nxf6+ { [%clk 0:06:50.3] } 15... Bxf6 { [%clk 0:12:33.8] } 16. Bh6 { [%clk 0:06:52.2] } 16... Bg7 { [%clk 0:12:14.2] } 17. h4 { [%clk 0:05:57.6] } 17... Qb6+ { [%clk 0:11:31] } 18. Kh1 { [%clk 0:05:38.1] } 18... Bb5 { [%clk 0:11:04.6] } 19. Rg1 { [%clk 0:04:42.1] } 19... Bc4 { [%clk 0:10:28] } 20. Bxg7 { [%clk 0:04:31.5] } 20... Kxg7 { [%clk 0:10:04.1] } 21. Qc3+ { [%clk 0:04:32.6] } 21... Kg8 { [%clk 0:09:51.8] } 22. Bxc4 { [%clk 0:04:37.4] } 22... Qc5 { [%clk 0:09:52] } 23. Bxf7+ { [%clk 0:04:00.2] } 23... Rxf7 { [%clk 0:09:52.5] } 24. Qxc5 { [%clk 0:03:58.5] } 24... Rxc5 { [%clk 0:09:58.6] } 25. c3 { [%clk 0:03:39] } 25... Rf4 { [%clk 0:09:56.6] } 26. Kh2 { [%clk 0:02:51] } 26... Rxh4+ { [%clk 0:09:37.1] } 27. Kg3 { [%clk 0:02:57.4] } 27... Rhh5 { [%clk 0:09:23] } 28. f4 { [%clk 0:02:45.6] } 28... Rc4 { [%clk 0:09:05.1] } 29. Rd4 { [%clk 0:02:47.9] } 29... Rxd4 { [%clk 0:09:04.5] } 30. cxd4 { [%clk 0:02:53.1] } 30... Rb5 { [%clk 0:09:03.5] } 31. Rc1 { [%clk 0:02:27.3] } 31... Rxb2 { [%clk 0:09:01.2] } 32. Rc7 { [%clk 0:02:17.5] } 32... Kf7 { [%clk 0:09:04] } 33. a4 { [%clk 0:02:17.5] } 33... Rb4 { [%clk 0:09:07.5] } 34. Kf3 { [%clk 0:02:09.4] } 34... Rxd4 { [%clk 0:09:11.8] } 35. Rxb7 { [%clk 0:02:16.3] } 35... Rxa4 { [%clk 0:09:18.8] } 36. Rb3 { [%clk 0:02:03.7] } 36... Ra1 { [%clk 0:09:18.6] } 37. Kg4 { [%clk 0:00:45.6] } 37... a5 { [%clk 0:09:14.3] } 38. g3 { [%clk 0:00:53] } 38... a4 { [%clk 0:08:44.1] } 39. Rb7 { [%clk 0:01:00.8] } 39... h5+ { [%clk 0:08:01.8] } 40. Kg5 { [%clk 0:00:29.8] } 40... Rg1 { [%clk 0:07:35.4] } 41. Kh4 { [%clk 0:00:26.7] } 41... Rh1+ { [%clk 0:07:18.5] } 42. Kg5 { [%clk 0:00:30.4] } 42... Rh3 { [%clk 0:07:24.3] } 0-1

[Event "Live Chess"]
[Site "Chess.com"]
[Date "2021.02.28"]
[Round "-"]
[White "Kynoch, Richard J P"]
[Black "Macnab, Crawford T"]
[Result "1/2-1/2"]
[BlackElo "1513"]
[CurrentPosition "8/2r3pk/8/1p3P1Q/3r3P/8/2P5/1K6 b - -"]
[ECO "B00"]
[ECOUrl "https://www.chess.com/openings/Nimzowitsch-Defense-Kennedy-Paulsen-Attack"]
[EndDate "2021.02.28"]
[EndTime "12:08:56"]
[Link "https://www.chess.com/live/game/8249103043"]
[StartTime "11:06:06"]
[Termination "Game drawn by repetition"]
[TimeControl "1500+10"]
[Timezone "UTC"]
[UTCDate "2021.02.28"]
[UTCTime "11:06:06"]
[WhiteElo "1876"]

1. e4 { [%clk 0:25:10] } 1... Nc6 { [%clk 0:25:10] } 2. d4 { [%clk 0:25:15.6] } 2... e5 { [%clk 0:25:17.1] } 3. dxe5 { [%clk 0:25:08.7] } 3... Nxe5 { [%clk 0:25:24.3] } 4. Nf3 { [%clk 0:25:08.8] } 4... Nxf3+ { [%clk 0:25:28.8] } 5. Qxf3 { [%clk 0:25:16.2] } 5... Qf6 { [%clk 0:25:37.5] } 6. Nc3 { [%clk 0:24:07.4] } 6... Bb4 { [%clk 0:25:22.6] } 7. Bd2 { [%clk 0:23:59.8] } 7... Qxf3 { [%clk 0:24:16.7] } 8. gxf3 { [%clk 0:24:00] } 8... Ne7 { [%clk 0:23:56.7] } 9. Rg1 { [%clk 0:22:53.5] } 9... O-O { [%clk 0:23:00.9] } 10. O-O-O { [%clk 0:21:49.5] } 10... d6 { [%clk 0:22:44.3] } 11. Nb5 { [%clk 0:19:33.9] } 11... Bc5 { [%clk 0:20:11.1] } 12. Be3 { [%clk 0:19:08.1] } 12... Bb6 { [%clk 0:15:48.3] } 13. Bxb6 { [%clk 0:17:47.3] } 13... axb6 { [%clk 0:15:30.9] } 14. Nxc7 { [%clk 0:15:05.9] } 14... Rxa2 { [%clk 0:15:22.7] } 15. Kb1 { [%clk 0:14:26.2] } 15... Ra5 { [%clk 0:14:39] } 16. Rxd6 { [%clk 0:13:30.7] } 16... Rc5 { [%clk 0:14:01.4] } 17. Nb5 { [%clk 0:12:30.5] } 17... f5 { [%clk 0:13:15.8] } 18. b3 { [%clk 0:09:43.8] } 18... Nc6 { [%clk 0:09:18.4] } 19. Bc4+ { [%clk 0:08:08.4] } 19... Kh8 { [%clk 0:09:23] } 20. Rgd1 { [%clk 0:06:37.4] } 20... fxe4 { [%clk 0:08:51.1] } 21. fxe4 { [%clk 0:06:37.7] } 21... h6 { [%clk 0:08:18.4] } 22. R1d2 { [%clk 0:05:23.8] } 22... Rh5 { [%clk 0:07:48.9] } 23. f3 { [%clk 0:04:36.3] } 23... Rh3 { [%clk 0:07:13.1] } 24. Nd4 { [%clk 0:03:04.2] } 24... Ne5 { [%clk 0:05:59] } 25. f4 { [%clk 0:02:35.3] } 25... Nxc4 { [%clk 0:05:30.8] } 26. bxc4 { [%clk 0:02:38.9] } 26... Rc3 { [%clk 0:05:33.8] } 27. e5 { [%clk 0:02:08.4] } 27... Rxc4 { [%clk 0:05:07.7] } 28. e6 { [%clk 0:02:08.7] } 28... Re8 { [%clk 0:04:56.9] } 29. f5 { [%clk 0:02:05.1] } 29... Kh7 { [%clk 0:04:49.7] } 30. Nb3 { [%clk 0:01:56.1] } 30... Re7 { [%clk 0:04:27.4] } 31. Rxb6 { [%clk 0:01:43.7] } 31... h5 { [%clk 0:03:32.1] } 32. Rd8 { [%clk 0:01:35.5] } 32... Kh6 { [%clk 0:03:33.5] } 33. h4 { [%clk 0:01:42.2] } 33... Kh7 { [%clk 0:03:11.2] } 34. Nd4 { [%clk 0:01:34.7] } 34... Rec7 { [%clk 0:01:56.8] } 35. Rbd6 { [%clk 0:01:14.9] } 35... b5 { [%clk 0:01:43.4] } 36. R6d7 { [%clk 0:00:43.2] } 36... Bxd7 { [%clk 0:01:35.7] } 37. e7 { [%clk 0:00:30] } 37... Be8 { [%clk 0:00:52.7] } 38. Rxe8 { [%clk 0:00:36.3] } 38... Rxd4 { [%clk 0:00:59.5] } 39. Rh8+ { [%clk 0:00:44.3] } 39... Kxh8 { [%clk 0:01:07.4] } 40. e8=Q+ { [%clk 0:00:48.2] } 40... Kh7 { [%clk 0:01:12.5] } 41. Qxh5+ { [%clk 0:00:53.9] } 41... Kg8 { [%clk 0:01:21.1] } 42. Qe8+ { [%clk 0:00:56] } 42... Kh7 { [%clk 0:01:27.8] } 43. Qh5+ { [%clk 0:00:44.8] } 43... Kg8 { [%clk 0:01:34] } 44. Qe8+ { [%clk 0:00:32.9] } 44... Kh7 { [%clk 0:01:41.5] } 45. Qh5+ { [%clk 0:00:41.1] } 1/2-1/2